bitfinex/quotes_ETHUSD_20250403
["timestamp","ask_amount","ask_price","bid_price","bid_amount"]
[1743698888762,3.932337,1776.6,1776.3,11.25903]
[1743698888962,3.0,1776.6,1776.3,11.25903]
[1743698889191,3.0,1776.6,1776.3,5.62951]
[1743698889693,8.62882,1776.6,1776.3,5.62951]
[1743698890491,8.62882,1776.6,1776.2,12.01783]
[1743698890680,0.7761,1776.5,1776.2,11.25975]
[1743698890883,7.345762,1776.5,1776.1,5.68014]
[1743698891063,7.345762,1776.5,1776.1,11.31033]
[1743698891263,12.974992,1776.5,1776.1,5.68014]
[1743698891465,8.62937,1776.4,1776.1,5.68014]
[1743698891666,0.02914714,1776.3,1776.1,5.68014]
[1743698891860,0.02914714,1776.3,1776.1,11.31032]
[1743698892295,0.02914714,1776.3,1776.2,5.62999]
[1743698894495,0.02914714,1776.3,1776.2,8.18721789]
[1743698894694,0.02914714,1776.3,1776.2,8.13092]
[1743698895263,7.14e-06,1776.3,1776.2,8.13092]
[1743698895470,0.41366176,1777.2,1776.9,5.62752]
[1743698895668,12.04313,1777.5,1777.1,5.62698]
[1743698895901,4.0,1777.2,1777.1,11.25396]
[1743698896101,4.0,1777.2,1777.1,6.43118]
[1743698896289,0.55,1777.4,1777.1,11.25397]
[1743698896490,8.04344958,1777.5,1777.2,5.62682]
[1743698896685,2.41754958,1777.5,1777.2,11.25347]
[1743698896874,2.41754958,1777.5,1777.1,5.62713]
[1743698896875,4.0,1777.3,1777.1,5.62713]
[1743698897076,4.4,1777.3,1777.0,5.62743]
[1743698897282,0.4,1777.3,1777.1,5.62689]
[1743698897482,3.0,1777.4,1777.1,5.62689]
[1743698897682,3.0,1777.4,1777.1,11.25392]
[1743698897881,3.0,1777.4,1777.1,5.62689]
[1743698898100,5.6264,1777.4,1777.0,5.62735]
[1743698898288,3.0,1777.4,1777.1,5.62697]
[1743698898585,0.3,1777.3,1777.2,5.62682]
[1743698898915,3.0,1777.4,1777.2,5.62682]
[1743698899775,3.0,1777.4,1777.1,5.6271]
[1743698900106,3.0,1777.4,1777.2,5.62682]
[1743698900305,10.48113089,1777.7,1777.3,6.45661]
[1743698900507,3.55,1777.7,1777.4,5.62605]
[1743698900706,0.355,1777.6,1777.4,5.62605]
[1743698900906,0.355,1777.6,1777.4,11.25214]
[1743698901077,0.355,1777.6,1777.4,5.62605]
[1743698901279,3.55,1777.7,1777.5,5.62577]
[1743698901509,9.17525,1777.7,1777.4,5.62605]
[1743698901670,3.55,1777.7,1777.4,5.62605]
[1743698901979,0.7849,1777.8,1777.3,0.8301]
[1743698902184,3.7849,1777.8,1777.5,5.62569]
[1743698902385,4.780851,1777.8,1777.5,5.62569]
[1743698903873,11.13077089,1778.0,1777.9,5.62461]
[1743698903874,0.7666,1778.0,1777.9,5.62461]
[1743698904074,4.0,1778.0,1777.7,6.42295]
[1743698904274,4.0,1778.0,1777.8,5.62488]
[1743698904583,4.0,1778.0,1777.8,11.24968]
[1743698904907,3.4,1778.0,1777.8,5.6248]
[1743698905108,0.4,1778.0,1777.8,5.62478]
[1743698905290,0.7812,1778.2,1778.0,5.62413]
[1743698905496,2.277241,1778.1,1777.9,11.24922]
[1743698905671,4.19627166,1778.2,1777.9,5.62461]
[1743698905876,4.19627166,1778.2,1777.9,5.62451]
[1743698906312,4.19627166,1778.2,1777.9,5.62448]
[1743698906506,0.41962717,1778.1,1777.9,11.24899]
[1743698906804,0.41962717,1778.1,1777.9,5.62448]
[1743698907010,0.41962717,1778.1,1777.9,5.62445]
[1743698907187,3.0,1778.3,1778.2,5.62366]
[1743698907383,0.7545,1778.4,1778.2,5.62366]
[1743698907582,3.0,1778.3,1778.1,0.8221]
[1743698907795,0.937763,1778.3,1778.2,5.62366]
[1743698907996,0.7545,1778.4,1778.2,11.24732]
[1743698908183,0.7545,1778.4,1778.1,6.44584]
[1743698908386,0.7545,1778.4,1778.2,5.62334]
[1743698908612,3.0,1778.5,1778.2,11.24686]
[1743698908816,3.0,1778.5,1778.3,5.62333]
[1743698908817,0.42309336,1778.5,1778.3,5.62333]
[1743698909117,6.01,1778.7,1778.1,6.50219366]
[1743698909280,6.06,1778.9,1778.8,5.62176]
[1743698909474,0.05,1778.9,1778.8,5.62176]
[1743698909782,0.05,1778.9,1778.6,5.62235]
[1743698910103,0.05,1778.9,1778.7,5.62204]
[1743698910297,18.665087,1778.8,1778.5,5.62271]
[1743698910621,6.96049,1778.8,1778.4,5.62292]
[1743698910815,3.0,1778.7,1778.5,5.62259]
[1743698911021,0.55,1778.6,1778.4,5.62272]
[1743698911179,9.41039,1778.8,1778.4,11.24563]
[1743698911383,6.563119,1778.7,1778.3,5.62331]
[1743698911729,0.941039,1778.7,1778.4,11.24584]
[1743698911942,6.563229,1778.7,1778.3,11.24658]
[1743698912105,6.563229,1778.7,1778.3,5.62321]
[1743698912305,0.941039,1778.7,1778.4,5.62302]
[1743698912486,0.941039,1778.7,1778.4,5.623]
[1743698912687,3.7886,1778.8,1778.5,5.62259]
[1743698912932,9.41038,1778.8,1778.5,5.62259]
[1743698913219,9.41052,1778.8,1778.2,0.7913]
[1743698913524,9.41052,1778.8,1778.4,11.24552]
[1743698913684,9.41052,1778.8,1778.4,5.62272]
[1743698913889,6.563272,1778.7,1778.4,5.62272]
[1743698914410,0.941052,1778.7,1778.4,11.24557]
[1743698914612,0.941052,1778.7,1778.4,5.62272]
[1743698914813,0.7886,1778.8,1778.2,6.41473]
[1743698914996,0.7886,1778.8,1778.6,5.62229]
[1743698915202,3.617127,1778.9,1778.6,5.62229]
[1743698915604,9.238577,1778.9,1778.6,5.62229]
[1743698916009,3.0,1778.7,1778.5,5.62261]
[1743698916206,8.62188,1778.8,1778.5,5.62257]
[1743698916430,3.0,1778.7,1778.4,5.62297]
[1743698916807,3.0,1778.7,1778.3,5.6233]
[1743698916808,15.06655,1778.7,1778.3,5.6233]
[1743698917016,9.44429,1778.7,1778.4,5.6229]
[1743698917189,9.44429,1778.7,1778.3,11.24643]
[1743698917395,9.44429,1778.7,1778.4,5.62299]
[1743698917701,0.944429,1778.6,1778.4,5.62299]
[1743698917907,6.566819,1778.6,1778.3,5.6232]
[1743698918449,0.944429,1778.6,1778.5,5.62271]
[1743698918595,3.8221,1778.7,1778.5,11.24532]
[1743698918793,1.4860457,1778.8,1778.6,5.62221]
[1743698919026,3.8578,1778.9,1778.6,5.62221]
[1743698919193,9.47927,1778.9,1778.5,6.45176]
[1743698919544,15.10087,1778.9,1778.5,6.45178]
[1743698919845,9.4793,1778.9,1778.5,6.45167]
[1743698920126,9.4795,1778.9,1778.5,6.45181]
[1743698920326,6.17203,1778.8,1778.5,0.8291]
[1743698920624,3.0,1778.7,1778.5,5.62264]
[1743698921493,3.0,1778.7,1778.5,5.62259]
[1743698921691,0.05,1778.9,1778.7,5.62193]
[1743698921926,0.05,1778.9,1778.7,6.43433]
[1743698922296,5.67147,1778.9,1778.5,5.62269]
[1743698922521,3.917147,1778.9,1778.4,0.8124]
[1743698922724,3.0,1778.8,1778.6,5.62221]
[1743698923307,0.05,1778.9,1778.8,6.43416]
[1743698929817,0.05,1778.9,1778.8,5.62176]
[1743698930660,0.05,1778.9,1778.8,6.43596]
[1743698932123,0.05,1778.9,1778.8,5.62176]
[1743698932423,0.05,1778.9,1778.5,5.6227]
[1743698932622,0.7801,1778.8,1778.6,11.24462]
[1743698932936,0.7801,1778.8,1778.6,5.62224]
[1743698933133,0.7801,1778.8,1778.5,5.62258]
[1743698933334,0.7801,1778.8,1778.5,6.264268]
[1743698933535,6.40189,1778.8,1778.5,6.264268]
[1743698933736,0.7801,1778.8,1778.5,6.264268]
[1743698934025,3.0,1778.7,1778.4,12.04018]
[1743698934218,3.0,1778.7,1778.4,11.24585]
[1743698934556,8.62252,1778.6,1778.2,12.06449]
[1743698934720,8.62252,1778.6,1778.3,5.6233]
[1743698934924,3.0,1778.6,1778.5,5.62271]
[1743698935249,0.7801,1778.8,1778.5,0.562271]
[1743698935454,0.46241881,1778.9,1778.7,11.24392]
[1743698935625,0.05,1778.9,1778.8,5.62176]
[1743698938037,0.05,1778.9,1778.8,6.39306]
[1743698940059,0.05,1778.9,1778.8,6.56879086]
[1743698943141,0.8317,1779.6,1779.4,5.61983]
[1743698943342,0.8317,1779.6,1779.3,11.24024]
[1743698943541,3.02914952,1779.5,1779.2,6.37413]
[1743698943741,3.02914952,1779.5,1779.3,5.62014]
[1743698943943,3.02914952,1779.5,1779.2,5.62043]
[1743698944146,8.64885952,1779.5,1779.1,11.24149]
[1743698944339,0.97720547,1779.5,1779.1,5.62073]
[1743698944659,5.61999,1779.4,1779.1,5.62073]
[1743698944981,5.61999,1779.4,1779.1,11.24138]
[1743698945156,3.83884952,1779.3,1778.8,6.4617]
[1743698945471,0.8097,1779.0,1778.7,5.62206]
[1743698945632,0.8097,1779.0,1778.4,0.8123]
[1743698945633,3.0,1778.8,1778.4,0.8123]
[1743698945827,0.02914952,1778.9,1778.5,5.62271]
[1743698946048,3.02914952,1778.8,1778.6,0.562271]
[1743698946458,3.02914952,1778.8,1778.7,5.62208]
[1743698946764,3.02914952,1778.8,1778.6,0.562271]
[1743698946965,9.44621,1778.6,1778.3,5.79911377]
[1743698947131,15.06884,1778.6,1778.3,0.17577377]
[1743698947331,0.02914952,1778.5,1778.3,0.17577377]
[1743698947531,0.02914952,1778.5,1778.3,5.79911377]
[1743698947767,5.65185952,1778.5,1778.2,5.62349]
[1743698947968,5.65185952,1778.5,1778.2,6.185839]
[1743698947969,0.02914952,1778.5,1778.2,6.185839]
[1743698948186,0.02914952,1778.5,1778.4,5.62303]
[1743698948340,0.02914952,1778.5,1778.4,6.38893]
[1743698949464,0.02914952,1778.5,1778.4,12.32891741]
[1743698949663,0.02914952,1778.5,1778.4,12.27270112]
[1743698949864,9.52e-06,1778.5,1778.4,15.06180191]
[1743698950165,0.761,1779.2,1779.0,11.24185]
[1743698950464,3.0,1779.1,1778.9,5.62144]
[1743698950645,3.0,1779.1,1778.9,11.24274]
[1743698950968,3.0,1779.1,1778.9,5.6213]
[1743698951342,0.761,1779.2,1778.9,6.825461]
[1743698951547,0.761,1779.2,1779.0,5.62113]
[1743698952040,0.761,1779.2,1779.0,5.621]
[1743698952233,11.1850539,1779.4,1779.1,5.62072]
[1743698952482,11.1850539,1779.4,1778.9,1.204171]
[1743698952483,5.5651739,1779.4,1778.9,1.204171]
[1743698952638,0.8245,1779.2,1778.6,5.62229]
[1743698952843,8.62082,1779.1,1778.8,5.62175]
[1743698953044,8.62082,1779.1,1778.7,5.62193]
[1743698953373,8.62082,1779.1,1778.7,11.24391]
[1743698953668,14.24186,1779.1,1778.7,5.62193]
[1743698954045,3.8193,1778.9,1778.5,5.79836887]
[1743698954251,0.8193,1778.9,1778.5,5.79836887]
[1743698954450,3.8193,1778.9,1778.5,5.79836887]
[1743698954856,3.0,1778.7,1778.5,0.17575887]
[1743698955191,3.0,1778.7,1778.5,5.62261]
[1743698955350,3.0,1778.7,1778.5,5.62254]
[1743698955547,0.8193,1778.9,1778.6,5.62239]
[1743698955851,1.20123,1778.9,1778.5,5.62258]
[1743698956185,5.57300677,1778.9,1778.6,5.62236]
[1743698956396,6.00301829,1778.9,1778.6,5.62224]
[1743698956745,6.00301829,1778.9,1778.7,5.62205]
[1743698957089,3.8193,1778.9,1778.8,5.62176]
[1743698957292,3.8193,1778.9,1778.7,5.62197]
[1743698957787,3.8193,1778.9,1778.8,5.62176]
[1743698958147,3.0,1778.9,1778.8,5.62176]
[1743698958398,6.762,1779.1,1779.0,5.62113]
[1743698958399,0.752,1779.1,1779.0,5.62113]
[1743698958693,3.752,1779.1,1779.0,5.62113]
[1743698961446,3.0,1779.1,1779.0,5.62113]
[1743698961876,3.7997,1779.3,1779.2,5.6205]
[1743698962102,7.22042158,1779.5,1779.4,5.61987]
[1743698962370,7.653815,1779.5,1779.4,5.61987]
[1743698962606,6.84,1779.8,1779.7,5.61892]
[1743698963019,0.05,1779.9,1779.8,5.6186]
[1743698963244,4.05,1779.9,1779.8,5.6186]
[1743698963569,0.05,1779.9,1779.8,5.6186]
[1743698964032,0.05,1779.9,1779.8,6.742339]
[1743698964322,0.05,1779.9,1779.8,12.450339]
[1743698965618,0.55,1780.0,1779.9,6.43239]
[1743698965805,0.55,1780.1,1780.0,5.61797]
[1743698965980,0.7751,1780.6,1780.5,5.61639]
[1743698966515,0.7751,1780.6,1780.3,5.61702]
[1743698966672,3.55,1780.5,1780.4,5.61671]
[1743698966872,3.98251,1780.5,1780.3,11.23386]
[1743698967073,3.98251,1780.5,1780.4,5.61671]
[1743698967284,3.0,1780.5,1780.4,5.61671]
[1743698967579,0.7751,1780.6,1780.5,5.61639]
[1743698968183,0.7751,1780.6,1780.4,11.23342]
[1743698968406,0.7751,1780.6,1780.3,5.617]
[1743698969108,0.7751,1780.6,1780.3,5.61692]
[1743698969506,0.7751,1780.6,1780.4,5.61663]
[1743698970151,0.55,1780.8,1780.4,11.23323]
[1743698970355,1.758,1780.8,1780.4,11.23323]
[1743698970558,1.758,1780.8,1780.4,5.6166]
[1743698971040,1.758,1780.8,1780.4,5.61659]
[1743698971608,1.758,1780.8,1780.3,5.61688]
[1743698971937,1.758,1780.8,1780.4,5.61668]
[1743698972124,1.758,1780.8,1780.4,5.61655]
[1743698972332,10.78630326,1780.8,1780.3,5.61696]
[1743698972632,10.78630326,1780.8,1780.3,11.23387]
[1743698973240,4.62863033,1780.7,1780.1,5.61744]
[1743698973441,5.61744,1780.2,1779.7,5.61888]
[1743698973739,3.0,1779.9,1779.5,5.61943]
[1743698974038,3.0,1779.9,1779.5,11.23882]
[1743698974214,5.61866,1779.8,1779.4,6.45054]
[1743698974423,3.0,1779.7,1779.3,5.62003]
[1743698975212,3.0,1779.7,1779.3,5.62002]
[1743698975906,8.61897,1779.7,1779.3,5.62002]
[1743698976124,14.23812,1779.7,1779.2,12.15515]
[1743698976410,14.23816,1779.7,1779.2,13.932632]
[1743698976608,5.61927,1779.6,1779.2,13.932632]
[1743698978113,8.61896,1779.7,1779.3,5.62017]
[1743698978316,9.40511,1779.8,1779.4,5.61969]
[1743698978520,3.0,1779.6,1779.3,5.61999]
[1743698978721,3.0,1779.6,1779.4,5.61987]
[1743698979013,3.7864,1779.8,1779.5,5.61955]
[1743698979236,9.40503,1779.8,1779.4,5.61973]
[1743698979424,15.44051512,1779.8,1779.3,5.62017]
[1743698979630,9.82165512,1779.8,1779.3,7.5753592]
[1743698979947,3.0,1779.6,1779.3,7.5753592]
[1743698980151,5.61894,1779.7,1779.3,7.5753592]
[1743698980361,4.20301512,1779.8,1779.3,1.9552892]
[1743698980526,4.20301512,1779.8,1779.3,5.62018]
[1743698980714,14.65414512,1779.8,1779.3,5.62014]
[1743698980922,5.61894,1779.7,1779.2,12.15514]
[1743698981121,5.61933,1779.6,1779.2,17.77549]
[1743698981456,5.61905,1779.7,1779.3,5.62014]
[1743698981665,11.23822,1779.7,1779.3,6.827268]
[1743698981850,5.61933,1779.6,1779.3,1.207128]
[1743698982229,11.23825,1779.7,1779.3,1.207128]
[1743698982426,9.12061512,1779.8,1779.4,5.61976]
[1743698982672,3.41661512,1779.8,1779.5,5.61944]
[1743698982971,3.0,1779.8,1779.5,6.743371]
[1743698983163,3.0,1779.8,1779.6,5.61896]
[1743698983319,0.43154243,1779.9,1779.6,6.37863]
[1743698983523,11.62807,1780.0,1779.6,11.99786]
[1743698983854,11.62807,1780.0,1779.6,6.37863]
[1743698984157,11.62807,1780.0,1779.6,13.3099541]
[1743698984324,11.62807,1780.0,1779.7,5.61884]
[1743698984522,6.01,1780.0,1779.8,5.61857]
[1743698984719,3.7551,1780.1,1779.7,5.61889]
[1743698984924,5.61809,1780.0,1779.6,7.6907241]
[1743698985260,5.61809,1780.0,1779.6,11.2382]
[1743698985445,5.61856,1779.9,1779.5,6.44379]
[1743698985624,5.61856,1779.9,1779.5,5.61939]
[1743698985824,5.61801,1780.0,1779.6,5.61912]
[1743698986047,3.0,1780.0,1779.7,5.6189]
[1743698986356,8.61798,1780.0,1779.6,5.61906]
[1743698986735,5.61832,1779.9,1779.5,5.61944]
[1743698986933,11.23688,1779.9,1779.5,6.181364]
[1743698987149,5.61832,1779.9,1779.5,6.181344]
[1743698987345,5.61865,1779.8,1779.5,6.181344]
[1743698987737,0.7759,1779.8,1779.5,6.181344]
[1743698987942,0.7759,1779.8,1779.5,11.800774]
[1743698988261,0.7759,1779.8,1779.5,11.800764]
[1743698988463,0.7759,1779.8,1779.6,5.61921]
[1743698988650,8.61803,1780.0,1779.6,5.61908]
[1743698988966,0.79,1779.9,1779.6,5.6192]
[1743698989162,5.61871,1779.8,1779.5,0.561944]
[1743698989463,5.61896,1779.7,1779.4,5.61961]
[1743698989831,6.42143,1779.6,1779.2,5.62047]
[1743698990030,0.8021,1779.6,1779.3,5.62018]
[1743698990230,3.8021,1779.6,1779.3,5.62006]
[1743698990475,9.42136,1779.6,1779.3,5.62006]
[1743698990766,10.30226354,1779.6,1779.2,11.24083]
[1743698991066,15.92168354,1779.6,1779.2,5.62039]
[1743698991262,15.92180354,1779.6,1779.2,5.62037]
[1743698991567,16.00635354,1779.6,1779.2,5.62037]
[1743698991763,16.00635354,1779.6,1779.3,5.62015]
[1743698992164,16.00635354,1779.6,1779.2,5.62037]
[1743698992366,5.61958,1779.5,1779.2,5.62037]
[1743698992664,21.62574354,1779.6,1779.2,5.62037]
[1743698992864,21.62574354,1779.6,1779.1,11.24147]
[1743698992865,5.61957,1779.5,1779.1,11.24147]
[1743698993072,0.55,1779.3,1778.8,0.17569736]
[1743698993236,5.62077,1779.2,1778.8,5.79724736]
[1743698993445,5.62077,1779.2,1778.8,11.41889736]
[1743698993873,5.62077,1779.2,1778.9,5.62145]
[1743698994080,5.62077,1779.2,1778.8,12.27330585]
[1743698994579,0.8175,1779.1,1778.8,6.65186585]
[1743698994882,0.8175,1779.1,1778.9,5.62134]
[1743698995062,0.8175,1779.1,1779.0,5.62113]
[1743698995266,3.55,1779.3,1779.0,5.62113]
[1743698995267,4.3675,1779.3,1779.0,5.62113]
[1743698995480,9.98791,1779.3,1778.9,5.62138]
[1743698995676,9.98772,1779.3,1778.9,5.62129]
[1743698995882,4.3675,1779.3,1779.0,5.62112]
[1743698996085,0.7905,1779.5,1779.0,0.05621074]
[1743698996256,3.7905,1779.5,1779.2,5.62028]
[1743698997386,0.7905,1779.7,1779.5,5.61955]
[1743698997684,6.81312636,1780.1,1779.8,5.6186]
[1743698998057,9.81316636,1780.1,1779.8,5.6186]
[1743698998261,1.19540636,1780.1,1779.9,5.61829]
[1743698998476,4.19540636,1780.1,1779.9,5.61829]
[1743698998682,4.19540636,1780.1,1779.8,11.23692]
[1743698998883,6.4861,1780.3,1779.8,6.821412]
[1743698999059,0.7811,1780.3,1780.0,5.61769]
[1743698999263,0.7811,1780.3,1780.0,11.23555]
[1743698999459,4.19249506,1780.3,1780.0,5.61769]
[1743698999988,0.41139506,1780.3,1780.0,5.61769]
[1743699000307,0.0291519,1780.2,1779.8,5.61847]
[1743699000457,5.61783,1780.1,1779.7,12.02889]
[1743699000659,6.4001,1780.0,1779.7,5.61881]
[1743699001006,0.8112519,1780.0,1779.7,5.61876]
[1743699001183,0.8112519,1780.0,1779.5,12.14944]
[1743699001358,0.0291519,1780.0,1779.9,5.61829]
[1743699002062,0.0291519,1780.0,1779.8,5.61835]
[1743699002294,0.0291519,1780.0,1779.8,11.23678]
[1743699002463,0.0291519,1780.0,1779.9,5.61829]
[1743699003969,0.0291519,1780.0,1779.8,5.61835]
[1743699004694,0.0291519,1780.0,1779.9,5.61829]
[1743699004990,0.0291519,1780.0,1779.8,5.61835]
[1743699005192,5.61838,1779.9,1779.5,6.44777]
[1743699005392,3.0,1779.9,1779.6,5.61918]
[1743699005591,0.0291519,1779.8,1779.7,5.61871]
[1743699005998,0.0291519,1779.8,1779.6,11.23821]
[1743699006196,0.0291519,1779.8,1779.7,5.61892]
[1743699008975,0.0291519,1779.8,1779.6,5.6191]
[1743699009197,0.8221519,1779.8,1779.6,5.61898]
[1743699009401,0.8221519,1779.8,1779.6,11.23808]
[1743699009606,0.8221519,1779.8,1779.6,5.61898]
[1743699009914,0.8221519,1779.8,1779.6,11.23811]
[1743699010095,0.8221519,1779.8,1779.7,5.61892]
[1743699010282,0.0291519,1779.8,1779.7,5.61892]
[1743699010478,0.0291519,1779.8,1779.7,7.57219836]
[1743699010903,0.0291519,1779.8,1779.7,7.51601]
[1743699011595,0.0291519,1779.8,1779.7,7.5721874]
[1743699011821,0.0291519,1779.8,1779.7,7.51601]
[1743699012415,0.0291519,1779.8,1779.7,7.69164088]
[1743699014485,0.41618896,1780.4,1780.3,5.61703]
[1743699014821,0.41618896,1780.4,1780.2,5.6172]
[1743699014995,0.828,1780.3,1780.0,11.23564]
[1743699015194,1.8141029,1780.3,1780.0,5.61782]
[1743699015397,1.8141029,1780.3,1779.9,5.61824]
[1743699015398,7.4312529,1780.3,1779.9,5.61824]
[1743699015600,3.0,1780.1,1779.8,5.61846]
[1743699015790,3.0,1780.1,1779.9,5.61811]
[1743699015995,0.8178,1780.0,1779.8,5.61855]
[1743699016194,0.8178,1780.0,1779.8,5.61845]
[1743699017595,0.8178,1780.0,1779.9,5.61829]
[1743699018043,0.8178,1780.0,1779.8,11.23696]
[1743699018198,0.8178,1780.0,1779.9,5.61829]
[1743699018428,3.0,1780.1,1780.0,5.61797]
[1743699018627,3.0,1780.1,1779.9,5.61829]
[1743699018826,15.01065,1780.1,1779.7,5.61891]
[1743699019144,5.61806,1780.0,1779.7,11.23769]
[1743699019467,5.61806,1780.0,1779.7,11.23758]
[1743699019835,20.62847,1780.1,1779.7,11.23758]
[1743699020040,5.61816,1780.0,1779.7,5.61878]
[1743699020255,5.61816,1780.0,1779.7,5.61881]
[1743699020256,3.0,1779.9,1779.7,5.61881]
[1743699020583,3.0,1779.9,1779.2,5.62019]
[1743699020584,8.61893,1779.7,1779.2,5.62019]
[1743699020860,0.7876,1779.3,1779.0,5.62092]
[1743699021029,3.0,1779.2,1778.9,5.62139]
[1743699021229,8.6206,1779.2,1778.8,11.24331]
[1743699021862,0.7876,1779.3,1779.1,5.62066]
[1743699022022,5.62066,1779.2,1778.9,5.62139]
[1743699022240,6.40874,1779.0,1778.7,0.17574028]
[1743699022500,3.0,1778.8,1778.7,0.17574028]
[1743699022638,25.11506285,1778.8,1778.7,0.17574028]
[1743699022950,23.75132675,1778.8,1778.7,0.17574028]
[1743699023157,21.05492375,1778.8,1778.7,0.17574028]
[1743699023405,0.55,1778.7,1778.3,5.6233]
[1743699023543,0.55,1778.7,1778.3,11.24647]
[1743699023876,20.15046075,1778.8,1778.5,5.62241]
[1743699024248,13.54247785,1778.8,1778.5,5.62241]
[1743699024451,8.702,1778.8,1778.6,5.62221]
[1743699024676,8.702,1778.8,1778.5,5.62241]
[1743699024889,3.0,1778.6,1778.3,5.6233]
[1743699025255,3.0,1778.6,1778.3,5.62315]
[1743699026393,3.0,1778.6,1778.4,5.62299]
[1743699026588,8.62245,1778.6,1778.3,5.62331]
[1743699026883,3.0,1778.6,1778.3,5.62331]
[1743699027386,8.62243,1778.6,1778.2,5.62366]
[1743699027589,5.62287,1778.5,1778.1,5.67394]
[1743699027967,11.24587,1778.5,1778.1,5.67394]
[1743699028162,0.8109,1778.4,1778.1,5.67394]
[1743699028476,5.62366,1778.2,1778.1,0.05]
[1743699028790,7.84047785,1778.3,1778.1,5.67387]
[1743699029089,3.0,1778.3,1778.1,5.67387]
[1743699029290,3.0,1778.3,1778.1,0.05]
[1743699030592,8.62342,1778.3,1778.1,0.05]
[1743699030783,10.754667,1778.3,1778.1,0.05]
[1743699031297,11.173565,1778.3,1778.1,0.05]
[1743699032159,8.62366,1778.2,1778.1,0.05]
[1743699032576,3.0,1778.2,1778.1,0.05]
[1743699033900,9.17366,1778.2,1778.1,0.05]
[1743699034196,28.19577958,1778.2,1778.1,0.05]
[1743699034600,6.4482,1777.7,1777.2,5.62679]
[1743699034907,5.62599,1777.5,1777.1,11.30399]
[1743699035066,6.63574329,1777.5,1777.1,11.30399]
[1743699035266,6.63574329,1777.5,1777.1,5.67694]
[1743699035492,0.8209,1777.3,1777.1,5.67694]
[1743699035810,11.28799785,1777.3,1777.1,0.05]
[1743699036103,25.60329379,1777.2,1777.1,0.05]
[1743699036292,8.60148079,1777.2,1777.1,0.05]
[1743699036464,8.03000979,1777.2,1777.1,0.05]
[1743699036664,13.65682979,1777.2,1777.1,0.05]
[1743699037505,10.30561979,1777.2,1777.1,0.05]
[1743699037807,47.03869179,1777.2,1777.1,0.05]
[1743699037995,47.85309179,1777.2,1777.1,0.05]
[1743699038693,51.85309179,1777.2,1777.1,0.05]
[1743699039794,15.12001979,1777.2,1777.1,0.05]
[1743699040010,53.70279479,1777.2,1777.1,0.05]
[1743699041491,53.70279479,1777.2,1776.4,5.62935]
[1743699041492,11.25724,1776.7,1776.3,5.62955]
[1743699041692,5.62878,1776.6,1776.3,5.62955]
[1743699042022,5.62855,1776.7,1776.3,5.62952]
[1743699042234,5.62855,1776.7,1776.4,5.62935]
[1743699042380,5.62855,1776.7,1776.3,5.62952]
[1743699042580,4.55975329,1776.7,1776.2,5.62999]
[1743699042830,10.6178467,1776.7,1776.3,5.62947]
[1743699042995,10.6177767,1776.7,1776.4,5.6293]
[1743699043381,3.42956341,1776.7,1776.1,3.283129]
[1743699043581,3.42956341,1776.7,1776.4,5.62909]
[1743699043803,3.42956341,1776.7,1776.5,5.62903]
[1743699044122,3.42956341,1776.7,1776.4,5.62909]
[1743699044481,3.42956341,1776.7,1776.5,5.62902]
[1743699044681,3.42956341,1776.7,1776.4,5.62909]
[1743699044877,3.42956341,1776.7,1776.5,11.25785]
[1743699045196,3.0,1776.4,1776.2,5.62972]
[1743699045733,3.0,1776.4,1776.1,0.6]
[1743699046030,3.0,1776.4,1776.1,6.2301]
[1743699046237,0.55,1776.6,1776.2,5.62997]
[1743699046380,0.55,1776.6,1776.3,5.62956]
[1743699046723,1.22951895,1776.6,1776.4,5.62927]
[1743699046886,4.33859754,1776.7,1776.4,5.62927]
[1743699047247,4.33859754,1776.7,1776.4,11.25849]
[1743699047622,4.33859754,1776.7,1776.4,5.62918]
[1743699047822,4.84047785,1776.8,1776.6,5.62872]
[1743699048127,5.6275,1777.0,1776.8,5.62807]
[1743699048128,0.7703,1777.0,1776.8,5.62807]
[1743699048290,2.264828,1776.8,1776.7,5.62828]
[1743699048491,0.7703,1777.0,1776.8,5.62809]
[1743699048696,10.85047785,1777.1,1776.8,11.25602]
[1743699048897,5.66377785,1777.3,1777.0,5.62733]
[1743699049092,18.73131364,1777.3,1777.0,5.62733]
[1743699049298,18.73131364,1777.3,1776.9,5.62766]
[1743699049493,5.62685,1777.2,1776.9,5.62766]
[1743699049696,0.4120466,1777.2,1776.9,5.62764]
[1743699049907,0.55,1777.1,1776.7,5.62824]
[1743699050109,10.46814785,1777.0,1776.6,6.39857]
[1743699050289,10.46814785,1777.0,1776.7,5.62839]
[1743699050489,5.39047785,1777.0,1776.9,5.62777]
[1743699050718,4.84047785,1777.0,1776.9,5.62777]
[1743699051016,3.8233,1777.3,1777.0,5.62727]
[1743699051191,6.44995,1777.3,1777.0,5.62727]
[1743699051600,3.0,1777.2,1777.0,5.62743]
[1743699051796,3.0,1777.2,1777.0,5.62729]
[1743699051999,3.0,1777.2,1777.1,5.62714]
[1743699052185,3.41441177,1777.3,1777.1,5.62699]
[1743699052390,3.41441177,1777.3,1777.2,5.62682]
[1743699052723,3.802,1777.5,1777.2,5.62682]
[1743699052919,11.47243479,1777.5,1777.1,5.62699]
[1743699053126,17.09857479,1777.5,1777.1,11.25398]
[1743699053328,17.09847479,1777.5,1777.1,11.25398]
[1743699053502,11.47242479,1777.5,1777.1,11.25398]
[1743699053706,11.47242479,1777.5,1777.1,5.62699]